fUST/lending_fUST_20260107
["ID","MTS","AMOUNT","RATE_DAILY","PERIOD"]
[400579132,1767731443449,-714.0,0.00029222,2]
[400579134,1767731443459,-194.752,0.00029222,2]
[400579136,1767731443467,-508.0,0.00029316,2]
[400579138,1767731443477,-500.0,0.00029316,2]
[400579140,1767731443486,-151.0,0.00029363,3]
[400579142,1767731443495,-2000.0,0.00029372,7]
[400579144,1767731443504,-2440.08,0.000294,7]
[400579146,1767731443514,-508.0,0.00029453,2]
[400579148,1767731443525,-500.0,0.00029453,2]
[400579150,1767731443534,-2050.2634409,0.00029497,29]
[400579152,1767731443543,-227.8,0.000295,7]
[400579155,1767731443553,-192.03,0.000295,7]
[400579157,1767731443563,-550.0,0.00029589,5]
[400579159,1767731443573,-550.0,0.00029589,5]
[400579160,1767731443582,-508.0,0.0002959,2]
[400579162,1767731443592,-500.0,0.0002959,2]
[400579164,1767731443601,-270.216,0.00029709,2]
[400579166,1767731443610,-150.448,0.00029709,2]
[400579168,1767731443619,-151.389,0.00029709,2]
[400579170,1767731443630,-250.0,0.00029709,2]
[400579173,1767731443639,-267.158,0.00029709,2]
[400579175,1767731443649,-508.0,0.00029727,2]
[400579177,1767731443659,-558.00072349,0.00029727,2]
[400579179,1767731443669,-508.0,0.00029864,2]
[400579181,1767731443679,-11232.65,0.000299,2]
[400579183,1767731443688,-507.0,0.00029918,14]
[400579185,1767731443697,-1041.66666667,0.0003,10]
[400579187,1767731443706,-495.83,0.0003,2]
[400579189,1767731443715,-412.68505795,0.0003,10]
[400579191,1767731443724,-205.02791284,0.0003,30]
[400579192,1767731443733,-1539.161054,0.0003,7]
[400579194,1767731443742,-17929.07697112,0.0003,2]
[400579196,1767731443751,-684.43602892,0.0003,30]
[400579198,1767731443760,-1125.0,0.0003,5]
[400579200,1767731443769,-165.46,0.0003,5]
[400579202,1767731443779,-300.0,0.0003,60]
[400579204,1767731443788,-269.64837879,0.0003,2]
[400579206,1767731443796,-6092.02511956,0.0003,7]
[400579208,1767731443805,-1019.0,0.0003,7]
[400579210,1767731443815,-508.0,0.00030001,2]
[400579212,1767731443824,-1749.78,0.00030136,6]
[400579214,1767731443833,-650.0,0.00030137,5]
[400579217,1767731443843,-650.0,0.00030137,5]
[400579218,1767731443852,-261.65588748,0.00030137,120]
[400579220,1767731443861,-508.0,0.00030138,2]
[400579222,1767731443869,-521.0,0.00030205,14]
[400579224,1767731443878,-508.0,0.00030275,2]
[400579226,1767731443888,-2000.0,0.00030338,7]
[400579228,1767731443896,-508.0,0.00030412,2]
[400579230,1767731443906,-2261.68,0.000305,14]
[400579232,1767731443914,-508.0,0.00030549,2]
[400579234,1767731443923,-750.0,0.00030685,5]
[400579236,1767731443932,-750.0,0.00030685,5]
[400579238,1767731443942,-508.0,0.00030686,2]
[400579240,1767731443952,-300.0,0.0003074,2]
[400579243,1767731443961,-445.0,0.00030752,30]
[400579245,1767731443970,-721.0,0.00030752,30]
[400579246,1767731443979,-563.0,0.00030752,30]
[400579249,1767731443989,-373.0,0.000308,2]
[400579250,1767731443998,-2440.08,0.000308,7]
[400579253,1767731444007,-9931.15793158,0.00030814,2]
[400579255,1767731444016,-508.0,0.00030823,2]
[400579256,1767731444025,-582.23,0.00030958,30]
[400579258,1767731444035,-508.0,0.0003096,2]
[400579260,1767731444043,-227.18912585,0.00031,120]
[400579262,1767731444054,-297.70914997,0.00031,120]
[400579265,1767731444064,-1019.0,0.00031,7]
[400579266,1767731444073,-227.8,0.00031,7]
[400579269,1767731444082,-192.03,0.00031,7]
[400579270,1767731444091,-151.0,0.00031022,4]
[400579273,1767731444101,-507.0,0.00031068,14]
[400579274,1767731444110,-507.0,0.00031068,14]
[400579276,1767731444119,-508.0,0.00031097,2]
[400579278,1767731444128,-548.90127966,0.00031201,2]
[400579280,1767731444137,-850.0,0.00031233,5]
[400579282,1767731444146,-508.0,0.00031234,2]
[400579284,1767731444156,-2000.0,0.00031304,7]
[400579286,1767731444165,-508.0,0.00031371,2]
[400579288,1767731444174,-11232.65,0.000315,2]
[400579290,1767731444184,-582.23,0.00031506,31]
[400579292,1767731444193,-1749.78,0.00031506,8]
[400579294,1767731444202,-508.0,0.00031508,2]
[400579296,1767731444211,-508.43362918,0.00031645,2]
[400579298,1767731444220,-1000.0,0.00031678,30]
[400579300,1767731444230,-1000.0,0.00031678,30]
[400579302,1767731444239,-1000.0,0.00031678,30]
[400579304,1767731444248,-777.0,0.000317,2]
[400579306,1767731444259,-950.0,0.00031781,5]
[400579308,1767731444268,-297.70914997,0.000319,120]
[400579310,1767731444277,-18905.48192827,0.000319,2]
[400579312,1767731444286,-2261.68,0.000319,14]
[400579314,1767731444295,-507.0,0.00031932,14]
[400579316,1767731444304,-200.64404451,0.00032,2]
[400579318,1767731444314,-582.23,0.00032054,32]
[400579320,1767731444323,-2440.08,0.000321,7]
[400579322,1767731444332,-500.0,0.0003216,2]
[400579324,1767731444341,-507.0,0.00032219,14]
[400579326,1767731444350,-628.0,0.00032222,2]
[400579328,1767731444360,-1365.0,0.00032222,2]
[400579330,1767731444369,-2145.0,0.00032222,2]
[400579332,1767731444378,-417.0,0.00032222,2]
[400579334,1767731444388,-714.0,0.00032222,2]
[400579336,1767731444397,-178.0,0.00032222,2]
[400579337,1767731444407,-2000.0,0.0003227,7]
[400579339,1767731444417,-1050.0,0.00032329,5]
[400579341,1767731444426,-9000.0,0.000324,120]
[400579343,1767731444435,-227.8,0.000324,7]
[400579345,1767731444444,-192.03,0.000324,7]
[400579347,1767731444454,-2505.24273684,0.00032432,33]
[400579349,1767731444466,-2000.0,0.0003248,15]
[400579351,1767731444477,-582.23,0.00032602,33]
[400579353,1767731444486,-151.0,0.00032681,5]
[400579356,1767731444499,-507.0,0.00032795,14]
[400579358,1767731444508,-1749.78,0.00032876,120]
[400579360,1767731444519,-268.05037,0.00032877,31]
[400579362,1767731444530,-6390.63,0.00032877,10]
[400579363,1767731444539,-12186.5,0.00032877,10]
[400579365,1767731444549,-10155.42,0.00032877,10]
[400579367,1767731444559,-8462.85,0.00032877,10]
[400579370,1767731444570,-500.0,0.00032877,5]
[400579371,1767731444580,-1150.0,0.00032877,5]
[400579373,1767731444590,-615.75527161,0.00032877,7]
[400579375,1767731444602,-500.0,0.00032877,7]
[400579377,1767731444611,-500.0,0.00032877,7]
[400579379,1767731444620,-500.0,0.00032877,7]
[400579381,1767731444630,-500.0,0.00032877,7]
[400579383,1767731444639,-500.0,0.00032877,7]
[400579385,1767731444650,-500.0,0.00032877,7]
[400579387,1767731444660,-500.0,0.00032877,7]
[400579389,1767731444670,-500.0,0.00032877,7]
[400579391,1767731444679,-487.61770001,0.00032877,7]
[400579393,1767731444688,-500.0,0.00032877,7]
[400579405,1767731444799,-1235.12677463,0.00032885,120]
[400579407,1767731444809,-15155.94856204,0.00032898,2]
[400579409,1767731444818,-297.70914997,0.000329,120]
[400579411,1767731444828,-9931.15793158,0.00032966,2]
[400579413,1767731444837,-1041.66666667,0.00033,120]
[400579415,1767731444846,-4181.40895331,0.00033,120]
[400579417,1767731444855,-1760.41887495,0.00033,4]
[400579419,1767731444864,-44357.83912315,0.00033,20]
[400579421,1767731444873,-582.23,0.0003315,34]
[400579423,1767731444882,-164.07558496,0.000332,117]
[400579425,1767731444891,-164.07558495,0.000332,117]
[400579427,1767731444901,-11232.65,0.000332,14]
[400579429,1767731444910,-584.18779049,0.00033201,120]
[400579431,1767731444920,-184.3704767,0.00033205,30]
[400579433,1767731444932,-2000.0,0.00033237,7]
[400579434,1767731444941,-507.0,0.0003337,30]
[400579436,1767731444950,-373.0,0.000334,2]
[400579438,1767731444959,-274.48957796,0.00033425,5]
[400579440,1767731444970,-1078.71322358,0.00033425,5]
[400579442,1767731444979,-2440.08,0.000335,7]
[400579444,1767731444992,-4688.6762312,0.00033595,2]
[400579446,1767731445005,-2261.68,0.000336,30]
[400579448,1767731445018,-500.0,0.0003365,10]
[400579450,1767731445027,-500.0,0.0003365,10]
[400579452,1767731445038,-500.0,0.0003365,10]
[400579454,1767731445048,-507.0,0.00033658,30]
[400579456,1767731445057,-582.23,0.00033698,35]
[400579458,1767731445067,-210.0,0.00033699,5]
[400579460,1767731445076,-152.0,0.00033733,7]
[400579462,1767731445084,-166.0,0.00033733,7]
[400579464,1767731445094,-357.37586378,0.00033733,7]
[400579466,1767731445104,-152.0,0.00033733,7]
[400579468,1767731445113,-166.0,0.00033733,7]
[400579470,1767731445122,-166.0,0.00033733,7]
[400579471,1767731445131,-152.0,0.00033733,7]
[400579473,1767731445140,-152.0,0.00033733,7]
[400579475,1767731445150,-163.0,0.00033733,7]
[400579477,1767731445159,-152.0,0.00033733,7]
[400579479,1767731445169,-152.0,0.00033733,7]
[400579481,1767731445179,-163.0,0.00033733,7]
[400579483,1767731445188,-152.0,0.00033733,7]
[400579485,1767731445196,-152.0,0.00033733,7]
[400579487,1767731445206,-185.22374852,0.00033733,7]
[400579489,1767731445216,-152.0,0.00033733,7]
[400579491,1767731445225,-152.0,0.00033733,7]
[400579493,1767731445234,-153.76138875,0.00033733,7]
[400579495,1767731445243,-152.0,0.00033733,7]
[400579497,1767731445252,-284.0,0.00033733,7]
[400579499,1767731445261,-800.0,0.00033782,2]
[400579500,1767731445271,-500.0,0.0003385,10]
[400579502,1767731445279,-500.0,0.0003385,30]
[400579504,1767731445289,-800.0,0.00033865,2]
[400579506,1767731445298,-297.70914997,0.000339,120]
[400579508,1767731445307,-2724.453066,0.000339,19]
[400579510,1767731445316,-2744.64985488,0.000339,35]
[400579512,1767731445325,-800.0,0.00033902,2]
[400579514,1767731445334,-800.0,0.00033955,2]
[400579516,1767731445343,-1032.9531429,0.00034,2]
[400579518,1767731445352,-500.0,0.0003405,30]
[400579520,1767731445361,-500.0,0.0003405,30]
[400579522,1767731445370,-800.0,0.00034077,2]
[400579524,1767731445380,-771.97363199,0.00034165,2]
[400579526,1767731445390,-800.0,0.00034166,2]
[400579527,1767731445406,-2000.0,0.00034203,7]
[400579529,1767731445417,-800.0,0.00034208,2]
[400579531,1767731445426,-582.23,0.00034246,36]
[400579533,1767731445435,-1749.78,0.00034246,120]
[400579535,1767731445445,-500.0,0.0003425,10]
[400579537,1767731445454,-603.09510429,0.0003425,10]
[400579539,1767731445464,-800.0,0.00034282,2]
[400579541,1767731445475,-800.0,0.00034302,2]
[400579543,1767731445484,-151.0,0.00034341,6]
[400579545,1767731445493,-745.0,0.00034342,11]
[400579547,1767731445503,-800.0,0.00034364,2]
[400579549,1767731445516,-376.8200359,0.00034384,30]
[400579551,1767731445529,-376.8200359,0.00034384,30]
[400579553,1767731445539,-376.8200359,0.00034384,30]
[400579555,1767731445550,-376.8200359,0.00034384,30]
[400579557,1767731445560,-376.8200359,0.00034384,30]
[400579559,1767731445569,-376.8200359,0.00034384,30]
[400579561,1767731445580,-376.8200359,0.00034384,30]
[400579563,1767731445590,-376.8200359,0.00034384,30]
[400579565,1767731445602,-376.8200359,0.00034384,30]
[400579567,1767731445612,-376.8200359,0.00034384,30]
[400579569,1767731445621,-376.8200359,0.00034384,30]
[400579571,1767731445632,-376.8200359,0.00034384,30]
[400579573,1767731445641,-376.8200359,0.00034384,30]
[400579575,1767731445650,-376.8200359,0.00034384,30]
[400579577,1767731445659,-376.8200359,0.00034384,30]
[400579579,1767731445670,-376.8200359,0.00034384,30]
[400579581,1767731445680,-376.8200359,0.00034384,30]
[400579583,1767731445688,-200.0,0.00034393,2]
[400579585,1767731445697,-800.0,0.00034396,2]
[400579587,1767731445707,-1500.0,0.000344,19]
[400579589,1767731445716,-800.0,0.00034407,2]
[400579591,1767731445725,-800.0,0.00034428,2]
[400579592,1767731445734,-1100.0,0.0003443,14]
[400579594,1767731445744,-800.0,0.00034447,2]
[400579596,1767731445753,-800.0,0.0003445,2]
[400579598,1767731445762,-800.0,0.00034455,2]
[400579600,1767731445772,-800.0,0.00034457,2]
[400579602,1767731445782,-800.0,0.00034493,2]
[400579604,1767731445791,-800.0,0.00034499,2]
[400579606,1767731445800,-800.0,0.00034502,2]
[400579608,1767731445809,-800.0,0.00034507,2]
[400579610,1767731445819,-507.0,0.00034521,30]
[400579612,1767731445828,-270.0,0.00034521,5]
[400579614,1767731445838,-507.0,0.00034521,30]
[400579616,1767731445847,-800.0,0.00034527,2]
[400579618,1767731445856,-800.0,0.0003456,2]
[400579620,1767731445866,-800.0,0.0003456,2]
[400579622,1767731445876,-600.0,0.0003456,2]
[400579624,1767731445886,-800.0,0.00034582,2]
[400579626,1767731445895,-800.0,0.00034595,2]
[400579628,1767731445904,-281.0,0.000346,8]
[400579630,1767731445915,-250.0,0.000346,10]
[400579632,1767731445925,-800.0,0.00034614,2]
[400579634,1767731445935,-800.0,0.00034645,2]
[400579636,1767731445944,-1957.41361074,0.0003465,4]
[400579638,1767731445953,-500.0,0.0003465,10]
[400579640,1767731445962,-1221652.81164954,0.0003465,4]
[400579650,1767731446050,-474.33123186,0.0001629,4]
[400579652,1767731446059,-603.26667604,0.00017758,7]
[400579654,1767731446068,-58.00489391,0.00019424,2]
[400579682,1767731446329,-2429.14828818,0.00019424,2]
[400579684,1767731446339,-151.0,0.00019424,2]
[400579686,1767731446348,-204.04740029,0.00019424,2]
[400579688,1767731446357,-1500.87008783,0.00019972,2]
[400579690,1767731446368,-484.29175519,0.00019972,2]
[400579694,1767731446491,-272.8580354,0.00014,2]
[400579695,1767731446501,-64.3419646,0.00019972,2]
[400579696,1767731446512,-529.67404221,0.00019972,2]
[400579697,1767731446522,-2674.60743027,0.0002052,2]
[400579698,1767731446534,-900.83730917,0.00020693,13]
[400579699,1767731446543,-2773.56790519,0.00021068,2]
[400579700,1767731446552,-2876.18991768,0.00021616,2]
[400579701,1767731446562,-2982.60894464,0.00022164,2]
[400579702,1767731446572,-3092.96547559,0.00022712,2]
[400579703,1767731446582,-3207.40519818,0.0002326,2]
[400579705,1767731446591,-3326.07919052,0.00023808,2]
[400579707,1767731446602,-3449.14412057,0.00024356,2]
[400579709,1767731446612,-3576.76245303,0.00024904,2]
[400579711,1767731446622,-1020.44234051,0.00025452,2]
[400579713,1767731446633,-1681.53233858,0.00025452,2]
[400579716,1767731446645,-1007.1279847,0.00025452,2]
[400579718,1767731446654,-2000.0,0.00028982,7]
[400579720,1767731446664,-9531.29645375,0.000294,2]
[400579722,1767731446673,-2273.68861154,0.00030965,31]
[400579724,1767731446683,-1717.276566,0.000341,16]
[400579725,1767731446692,-376.8200359,0.00034384,30]
[400579728,1767731446702,-722.0,0.0003443,30]
[400579730,1767731446711,-1000.0,0.000346,16]
[400579732,1767731446720,-73958.8285155,0.0003465,4]
[400579734,1767731446737,-422.0,0.0003443,30]
[400579736,1767731446746,-2355.03,0.0003465,4]
[400580791,1767731492458,150.77,8.587e-05,2]
[400580792,1767731492890,169.62,8.894e-05,2]
[400580848,1767731689836,1042.47612657,0.00030136,120]
[400580952,1767732373677,-400.0,9.998e-05,2]
[400580953,1767732393829,699.78343266,0.0001,10]
[400580963,1767732528098,3075.03178691,9.275e-05,2]
[400580999,1767732632462,-643.77140468,9.997e-05,2]
[400581000,1767732632520,-556.22859532,9.997e-05,2]
[400581001,1767732632530,-300.0,9.998e-05,2]
[400581002,1767732632540,-300.0,9.998e-05,2]
[400581003,1767732632550,-300.0,9.998e-05,2]
[400581005,1767732632560,-300.0,9.998e-05,2]
[400581007,1767732632569,-560.0,9.998e-05,2]
[400581009,1767732632579,-266.50988997,9.998e-05,2]
[400581011,1767732632588,-300.0,9.999e-05,2]
[400581013,1767732632597,-474.89827991,9.999e-05,2]
[400581014,1767732632606,-7806.79197464,0.0001,2]
[400581015,1767732632619,-1496.8897785,0.0001,2]
[400581016,1767732632629,-440.41335325,0.0001,2]
[400581017,1767732632640,-586.56220887,0.0001,2]
[400581040,1767732638452,-7616.30943066,0.0001,2]
[400581047,1767732638507,-14273.47325408,0.0001,2]
[400581049,1767732638517,-28378.77756297,0.00010099,2]
[400581051,1767732638527,-186.98575797,0.00010099,2]
[400581053,1767732638537,-300.0,0.00010199,2]
[400581055,1767732638549,-300.0,0.00010199,2]
[400581057,1767732638558,-300.0,0.00010199,2]
[400581059,1767732638568,-300.0,0.00010199,2]
[400581061,1767732638579,-300.0,0.00010199,2]
[400581063,1767732638588,-300.0,0.00010199,2]
[400581065,1767732638598,-300.0,0.00010199,2]
[400581067,1767732638607,-300.0,0.00010199,2]
[400581069,1767732638616,-300.0,0.00010199,2]
[400581071,1767732638625,-300.0,0.00010199,2]
[400581073,1767732638634,-300.0,0.00010199,2]
[400581075,1767732638643,-300.0,0.00010199,2]
[400581077,1767732638653,-300.0,0.00010199,2]
[400581079,1767732638663,-300.0,0.00010199,2]
[400581081,1767732638672,-300.0,0.00010199,2]
[400581083,1767732638682,-600.0,0.00010402,2]
[400581085,1767732638691,-1680.0,0.00010997,2]
[400581087,1767732638700,-420.0,0.00010998,2]
[400581089,1767732638710,-300.0,0.00010998,2]
[400581091,1767732638719,-420.0,0.00010998,2]
[400581093,1767732638727,-420.0,0.00010998,2]
[400581095,1767732638736,-432.9246219,0.00010998,2]
[400581097,1767732638746,-648.99698252,0.00010998,2]
[400581099,1767732638754,-500.0,0.00010998,2]
[400581101,1767732638763,-500.0,0.00010998,2]
[400581103,1767732638773,-648.99698252,0.00010998,2]
[400581105,1767732638782,-648.99698252,0.00010998,2]
[400581107,1767732638792,-648.99698252,0.00010998,2]
[400581109,1767732638801,-648.99698252,0.00010998,2]
[400581111,1767732638810,-500.0,0.00010998,2]
[400581113,1767732638819,-648.99698252,0.00010998,2]
[400581115,1767732638829,-500.0,0.00010998,2]
[400581117,1767732638842,-648.99698252,0.00010998,2]
[400581119,1767732638852,-648.99698252,0.00010998,2]
[400581121,1767732638861,-541.36146215,0.00010998,2]
[400581123,1767732638871,-648.99698252,0.00010998,2]
[400581125,1767732638880,-420.0,0.00010999,2]
[400581127,1767732638889,-720.0,0.00011442,2]
[400581129,1767732638899,-314.48167016,0.00011998,2]
[400581131,1767732638909,-720.0,0.00012096,2]
[400581133,1767732638919,-564.51499178,0.00012097,2]
[400581135,1767732638928,-485.0,0.00012098,2]
[400581136,1767732638937,-587.0,0.00012098,2]
[400581139,1767732638947,-180.0,0.00012099,2]
[400581141,1767732638957,-864.0,0.00012586,2]
[400581143,1767732638966,-382.04422667,0.00012614,2]
[400581145,1767732638975,-12598.81201778,0.000129,2]
[400581146,1767732638985,-500.0,0.00013273,2]
[400581148,1767732638994,-500.0,0.00013273,2]
[400581151,1767732639004,-500.0,0.00013273,2]
[400581152,1767732639013,-165.53460267,0.00013273,2]
[400581155,1767732639022,-283.37004819,0.00013273,2]
[400581157,1767732639032,-500.0,0.00013273,2]
[400581159,1767732639041,-500.0,0.00013273,2]
[400581160,1767732639050,-500.0,0.00013273,2]
[400581162,1767732639060,-500.0,0.00013273,2]
[400581164,1767732639070,-500.0,0.00013273,2]
[400581166,1767732639079,-500.0,0.00013273,2]
[400581168,1767732639088,-500.0,0.00013273,2]
[400581170,1767732639098,-500.0,0.00013273,2]
[400581172,1767732639107,-500.0,0.00013273,2]
[400581174,1767732639116,-500.75815525,0.00013273,2]
[400581176,1767732639125,-500.0,0.00013273,2]
[400581178,1767732639135,-500.0,0.00013273,2]
[400581180,1767732639143,-500.0,0.00013273,2]
[400581182,1767732639152,-500.0,0.00013273,2]
[400581184,1767732639161,-500.0,0.00013273,2]
[400581186,1767732639170,-500.0,0.00013273,2]
[400581188,1767732639180,-606.03605592,0.00013273,2]
[400581190,1767732639189,-500.0,0.00013273,2]
[400581192,1767732639199,-500.45942406,0.00013273,2]
[400581194,1767732639207,-167.48106999,0.00013273,2]
[400581196,1767732639216,-500.93094912,0.00013273,2]
[400581198,1767732639226,-500.0,0.00013273,2]
[400581200,1767732639235,-500.0,0.00013273,2]
[400581202,1767732639244,-465.83435132,0.00013273,2]
[400581204,1767732639253,-500.0,0.00013273,2]
[400581206,1767732639262,-161.85370912,0.00013273,2]
[400581208,1767732639271,-500.0,0.00013273,2]
[400581210,1767732639281,-500.0,0.00013273,2]
[400581212,1767732639290,-500.0,0.00013273,2]
[400581214,1767732639299,-500.0,0.00013273,2]
[400581230,1767732639432,-500.0,0.00013273,2]
[400581232,1767732639444,-500.0,0.00013273,2]
[400581234,1767732639454,-500.0,0.00013273,2]
[400581236,1767732639463,-500.0,0.00013273,2]
[400581238,1767732639472,-268.70604187,0.00013273,2]
[400581241,1767732639481,-500.0,0.00013273,2]
[400581242,1767732639491,-500.0,0.00013273,2]
[400581244,1767732639500,-500.0,0.00013273,2]
[400581246,1767732639509,-500.0,0.00013273,2]
[400581248,1767732639519,-500.0,0.00013273,2]
[400581250,1767732639528,-210.68917911,0.00013273,2]
[400581252,1767732639538,-500.0,0.00013273,2]
[400581254,1767732639546,-232.41734948,0.00013273,2]
[400581256,1767732639556,-500.0,0.00013273,2]
[400581258,1767732639565,-536.41268697,0.00013273,2]
[400581260,1767732639574,-171.59960392,0.00013273,2]
[400581262,1767732639583,-500.0,0.00013273,2]
[400581264,1767732639592,-500.0,0.00013273,2]
[400581266,1767732639601,-500.0,0.00013273,2]
[400581268,1767732639610,-500.0,0.00013273,2]
[400581270,1767732639619,-500.0,0.00013273,2]
[400581272,1767732639628,-500.0,0.00013273,2]
[400581274,1767732639637,-500.0,0.00013273,2]
[400581276,1767732639646,-500.0,0.00013273,2]
[400581278,1767732639655,-500.0,0.00013273,2]
[400581280,1767732639664,-500.0,0.00013273,2]
[400581282,1767732639673,-500.0,0.00013273,2]
[400581284,1767732639682,-500.89572759,0.00013273,2]
[400581286,1767732639691,-500.0,0.00013273,2]
[400581288,1767732639701,-500.49523279,0.00013273,2]
[400581290,1767732639710,-500.0,0.00013273,2]
[400581292,1767732639719,-185.45250914,0.00013273,2]
[400581294,1767732639728,-500.0,0.00013273,2]
[400581296,1767732639737,-500.0,0.00013273,2]
[400581298,1767732639746,-159.32617446,0.00013273,2]
[400581300,1767732639755,-823.0,0.00013307,2]
[400581302,1767732639764,-500.0,0.00013698,2]
[400581304,1767732639773,-500.0,0.00013698,2]
[400581306,1767732639782,-500.0,0.00013698,2]
[400581308,1767732639791,-500.0,0.00013698,2]
[400581310,1767732639802,-500.0,0.00013698,2]
[400581311,1767732639811,-500.0,0.00013698,2]
[400581312,1767732639820,-580.76,0.00013698,2]
[400581313,1767732639829,-2667.21,0.00013698,2]
[400581314,1767732639842,-2667.21,0.00013698,2]
[400581315,1767732639852,-2667.21,0.00013698,2]
[400581316,1767732639860,-2667.21,0.00013698,2]
[400581317,1767732639871,-2667.21,0.00013698,2]
[400581318,1767732639880,-2667.21,0.00013698,2]
[400581319,1767732639889,-2667.21,0.00013698,2]
[400581320,1767732639899,-2667.21,0.00013698,2]
[400581321,1767732639910,-2667.21,0.00013698,2]
[400581322,1767732639919,-2667.21,0.00013698,2]
[400581323,1767732639929,-2667.21,0.00013698,2]
[400581324,1767732639938,-2667.21,0.00013698,2]
[400581325,1767732639947,-2667.21,0.00013698,2]
[400581326,1767732639957,-2667.21,0.00013698,2]
[400581327,1767732639966,-2667.21,0.00013698,2]
[400581329,1767732639975,-2667.21,0.00013698,2]
[400581331,1767732639984,-2667.21,0.00013698,2]
[400581333,1767732639994,-2667.21,0.00013698,2]
[400581335,1767732640004,-2667.21,0.00013698,2]
[400581337,1767732640014,-2667.21,0.00013698,2]
[400581339,1767732640024,-2667.21,0.00013698,2]
[400581342,1767732640033,-2667.21,0.00013698,2]
[400581343,1767732640043,-2667.21,0.00013698,2]
[400581345,1767732640051,-2667.38869488,0.00013698,2]
[400581347,1767732640060,-500.0,0.00013698,2]
[400581349,1767732640069,-500.0,0.00013698,2]
[400581351,1767732640079,-500.0,0.00013698,2]
[400581353,1767732640088,-500.0,0.00013698,2]
[400581355,1767732640097,-361.95914229,0.00013698,2]
[400581357,1767732640108,-577.08,0.00013698,2]
[400581359,1767732640117,-466.89772029,0.00013698,2]
[400581361,1767732640126,-1450.680786,0.00013699,2]
[400581363,1767732640135,-1000.0,0.00013699,2]
[400581365,1767732640144,-500.0,0.00013699,2]
[400581367,1767732640153,-500.0,0.00013699,2]
[400581369,1767732640162,-500.0,0.00013699,2]
[400581371,1767732640171,-500.0,0.00013699,2]
[400581373,1767732640180,-500.0,0.00013699,2]
[400581375,1767732640189,-500.0,0.00013699,2]
[400581377,1767732640198,-500.0,0.00013699,2]
[400581379,1767732640208,-500.0,0.00013699,2]
[400581381,1767732640217,-500.0,0.00013699,2]
[400581383,1767732640226,-500.0,0.00013699,2]
[400581385,1767732640235,-500.0,0.00013699,2]
[400581387,1767732640244,-500.0,0.00013699,2]
[400581389,1767732640253,-500.0,0.00013699,2]
[400581391,1767732640263,-500.0,0.00013699,2]
[400581393,1767732640272,-500.0,0.00013699,2]
[400581395,1767732640282,-500.0,0.00013699,2]
[400581397,1767732640292,-500.0,0.00013699,2]
[400581399,1767732640301,-500.0,0.00013699,2]
[400581401,1767732640311,-500.0,0.00013699,2]
[400581404,1767732640323,-500.0,0.00013699,2]
[400581406,1767732640332,-500.0,0.00013699,2]
[400581408,1767732640342,-500.93963039,0.00013699,2]
[400581410,1767732640351,-501.00450759,0.00013699,2]
[400581412,1767732640360,-500.74532212,0.00013699,2]
[400581414,1767732640368,-500.0,0.00013699,2]
[400581416,1767732640377,-343.49392703,0.00013699,2]
[400581418,1767732640387,-526.06901587,0.00013699,2]
[400581420,1767732640396,-500.0,0.00013699,2]
[400581422,1767732640405,-500.0,0.00013699,2]
[400581423,1767732640415,-500.0,0.00013699,2]
[400581425,1767732640424,-500.0,0.00013699,2]